fUSD/lending_fUSD_20240701
["ID","MTS","AMOUNT","RATE_DAILY","PERIOD"]
[330807268,1719811839036,-903.0,0.00022478,2]
[330807269,1719811839046,-59635.5203512,0.0002249,3]
[330807270,1719811839058,-13563.02965636,0.0002249,3]
[330807271,1719811839078,-52544.39856408,0.0002249,3]
[330807272,1719811839088,-150.5,0.0002249,30]
[330807273,1719811839098,-440.01836614,0.00022496,2]
[330807274,1719811839108,-158.61860172,0.00022496,2]
[330807275,1719811839118,-1000.0,0.00022499,2]
[330807276,1719811839128,-1000.0,0.00022499,2]
[330807277,1719811839138,-1000.0,0.00022499,2]
[330807278,1719811839148,-1000.0,0.00022499,2]
[330807280,1719811839159,-324.44093161,0.00022499,4]
[330807281,1719811839169,-500.0,0.00022499,4]
[330807283,1719811839179,-182.80168675,0.00022499,4]
[330807286,1719811839192,-317.19831325,0.00022499,4]
[330807288,1719811839202,-358.51368,0.00022499,4]
[330807290,1719811839212,-500.0,0.00022499,4]
[330807291,1719811839223,-500.0,0.00022499,4]
[330807293,1719811839232,-500.0,0.00022499,4]
[330807294,1719811839243,-353.44652452,0.00022499,4]
[330807295,1719811839252,-500.0,0.00022499,4]
[330807296,1719811839262,-500.0,0.00022499,4]
[330807297,1719811839272,-500.0,0.00022499,4]
[330807298,1719811839282,-500.0,0.00022499,4]
[330807299,1719811839294,-500.0,0.00022499,4]
[330807300,1719811839304,-500.0,0.00022499,4]
[330807301,1719811839314,-500.0,0.00022499,4]
[330807302,1719811839328,-500.0,0.00022499,4]
[330807304,1719811839338,-500.0,0.00022499,4]
[330807305,1719811839348,-500.0,0.00022499,4]
[330807306,1719811839359,-294.17783676,0.00022499,4]
[330807307,1719811839370,-500.0,0.00022499,2]
[330807308,1719811839381,-138.0909478,0.00022499,2]
[330807309,1719811839394,-361.9090522,0.00022499,2]
[330807310,1719811839407,-547.0,0.00022499,2]
[330807311,1719811839418,-635.68886196,0.000225,2]
[330807312,1719811839439,-597.0,0.00022499,2]
[330807313,1719811839450,-415.06916119,0.000225,2]
[330807314,1719811839464,-21726.54257317,0.000225,2]
[330807315,1719811839474,-361.60164931,0.000225,2]
[330807316,1719811839484,-222424.06146545,0.000225,7]
[330807317,1719811839496,-6688.73988323,0.000225,7]
[330807318,1719811839512,-898.10771543,0.000225,7]
[330807319,1719811839524,-5629.96734332,0.000225,7]
[330807321,1719811840326,-500.0,0.0002182,2]
[330807322,1719811840336,-689.84628692,0.000225,7]
[330807323,1719811840349,-3003.39578334,0.000225,7]
[330807324,1719811840558,-676955.98663539,0.000225,7]
[330807325,1719811840571,-42750.00360977,0.000225,7]
[330807326,1719811840583,-816.72000011,0.000225,7]
[330807327,1719811840595,-77060.01889971,0.000225,7]
[330807328,1719811840607,-7490.90642982,0.000225,7]
[330807329,1719811840632,-1048.21934277,0.000225,7]
[330807330,1719811840704,-2461.55426474,0.000225,7]
[330807344,1719811843252,-150.47115675,0.00022395,2]
[330807345,1719811843262,-292.70884425,0.00022496,2]
[330807347,1719811843335,-0.63673318,0.00022496,2]
[330807348,1719811843345,-1000043.48824862,0.000225,7]
[330807349,1719811843356,-33649.54591221,0.000225,7]
[330807350,1719811843366,-3009.76873337,0.000225,5]
[330807351,1719811843375,-152810.12230518,0.000225,120]
[330807352,1719811843386,-2337.72239091,0.000225,120]
[330807353,1719811843414,-1253.73407752,0.000225,120]
[330807354,1719811843504,-1628.673527,0.000225,120]
[330807355,1719811843515,-292278.26377982,0.000225,120]
[330807356,1719811843524,-4307.21440987,0.000225,120]
[330807357,1719811843535,-96591.89065269,0.000225,120]
[330807358,1719811843546,-5925.51205195,0.000225,120]
[330807359,1719811843557,-1594.23794976,0.000225,120]
[330807360,1719811843568,-378.223526,0.000225,120]
[330807364,1719811846271,-311.58,0.00021749,2]
[330807365,1719811846281,-507.56011474,0.00022142,2]
[330807366,1719811846294,-390.67842279,0.00022142,2]
[330807367,1719811846307,-2273.62276517,0.00022142,2]
[330807368,1719811846316,-422.70048993,0.000225,2]
[330807369,1719811846333,-114.29951007,0.000225,2]
[330807370,1719811846342,-3959.36569048,0.000225,120]
[330807371,1719811846359,-73892.50622283,0.0002195,2]
[330807372,1719811846370,-378949.85969505,0.000225,120]
[330807373,1719811846381,-4017.33599371,0.000225,120]
[330807374,1719811846392,-1215.05552828,0.000225,120]
[330807375,1719811846463,-12553.58685825,0.000225,120]
[330807376,1719811846483,-3519.8481979,0.000225,120]
[330807377,1719811846494,-4207.67543568,0.000225,120]
[330807378,1719811846504,-713.10704317,0.000225,120]
[330807379,1719811846518,-5538.54390909,0.000225,120]
[330807380,1719811846529,-232256.42354381,0.000225,120]
[330807381,1719811846541,-27179.58949181,0.000225,120]
[330807382,1719811846552,-711.6719425,0.000225,120]
[330807383,1719811846564,-560.68049149,0.000225,120]
[330807384,1719811846576,-1504.61649182,0.000225,120]
[330807385,1719811846587,-653.77171006,0.000225,120]
[330807386,1719811846604,-620.53980725,0.000225,120]
[330807387,1719811846616,-897.58999998,0.000225,120]
[330807389,1719811922192,500.0,0.00012636,2]
[330807390,1719811923774,500.0,0.00012636,2]
[330807391,1719811950294,255.02986626,0.00013906,2]
[330807393,1719812003900,600.0,0.00011266,2]
[330807394,1719812005690,600.0,0.00012088,2]
[330807395,1719812007465,600.0,0.0001291,2]
[330807396,1719812024377,1519888.68810758,0.00014,2]
[330807397,1719812030116,500.0,9.622e-05,2]
[330807398,1719812030510,500.0,0.00012636,2]
[330807399,1719812031883,500.0,0.00011266,2]
[330807400,1719812033671,500.0,0.0001291,2]
[330807401,1719812135349,3175.65,0.00014,2]
[330807402,1719812142852,500.0,0.00012636,2]
[330807406,1719812250533,169310.47105211,0.00013999,2]
[330807408,1719812331162,300.3176468,0.00013999,2]
[330807409,1719812356430,19820.96017953,0.00013999,2]
[330807410,1719812451432,19327.98056493,0.00013999,2]
[330807411,1719812454171,300.3176468,0.00013999,2]
[330807414,1719812714308,257.5035585,0.00013929,2]
[330807416,1719812801515,326.98,0.00012826,2]
[330807417,1719812861110,155.0,0.00013999,2]
[330807419,1719812964868,553.927529,0.00013936,2]
[330807420,1719812981142,422.84,0.00013986,2]
[330807430,1719813032293,-259.37769393,0.00014006,2]
[330807433,1719813032305,-440.62230607,0.00014006,2]
[330807435,1719813032314,-1062.29801502,0.00014008,2]
[330807437,1719813032326,-1138.83198498,0.00014008,2]
[330807439,1719813032335,-160.27755314,0.0001418,2]
[330807442,1719813032344,-160.27755312,0.0001427,2]
[330807444,1719813032353,-500.0,0.0001428,2]
[330807446,1719813032362,-160.27755312,0.0001436,2]
[330807448,1719813032372,-38801.0,0.00014409,2]
[330807449,1719813032383,-160.27755312,0.0001445,2]
[330807450,1719813032394,-4787.81704601,0.00014499,2]
[330807451,1719813032403,-400.0,0.0001453,2]
[330807452,1719813032412,-160.27755312,0.0001454,2]
[330807453,1719813032422,-600.0,0.00014554,2]
[330807454,1719813032432,-500.0,0.00014554,2]
[330807455,1719813032442,-160.27755312,0.0001463,2]
[330807456,1719813032453,-172.54,0.00014639,2]
[330807457,1719813032462,-172.54,0.00014679,2]
[330807458,1719813032471,-200.0,0.00014706,2]
[330807459,1719813032480,-172.54,0.00014719,2]
[330807460,1719813032490,-160.27755312,0.0001472,2]
[330807461,1719813032500,-172.54,0.00014759,2]
[330807462,1719813032510,-172.54,0.00014799,2]
[330807463,1719813032519,-160.27755312,0.0001481,2]
[330807464,1719813032528,-700.0,0.00014828,2]
[330807465,1719813032537,-172.54,0.00014839,2]
[330807466,1719813032546,-172.54,0.0001488,2]
[330807467,1719813032557,-1000.0,0.000149,2]
[330807468,1719813032567,-1222.9032,0.000149,2]
[330807469,1719813032578,-333.2649087,0.000149,2]
[330807470,1719813032587,-5144.79993622,0.000149,2]
[330807471,1719813032597,-160.27755312,0.000149,2]
[330807472,1719813032607,-172.54,0.0001492,2]
[330807473,1719813032616,-700.0,0.0001495,5]
[330807474,1719813032625,-172.54,0.0001496,2]
[330807475,1719813032635,-248.59,0.0001499,3]
[330807476,1719813032644,-184.60793833,0.0001499,2]
[330807477,1719813032653,-266.17183068,0.00014999,2]
[330807479,1719813032662,-1907.33688277,0.00014999,2]
[330807481,1719813032671,-1925.04516455,0.00015,2]
[330807483,1719813032681,-431461.15003264,0.00015,2]
[330807485,1719813032692,-27635.9657949,0.00015,2]
[330807488,1719813032708,-911.74092798,0.00015,2]
[330807489,1719813032719,-789.29286824,0.00015,2]
[330807490,1719813032733,-339.85299,0.00015,2]
[330807491,1719813032744,-3518.43456139,0.00015,2]
[330807492,1719813032756,-3603.53690901,0.00015,2]
[330807493,1719813032772,-692.9778482,0.00015,2]
[330807494,1719813032783,-26860.49584804,0.00015,2]
[330807495,1719813032795,-9158.32958316,0.00015,2]
[330807496,1719813032811,-1536.45624291,0.00015,2]
[330807497,1719813032823,-315.27536656,0.00015,2]
[330807498,1719813032834,-3142.88092348,0.00015,2]
[330807499,1719813032851,-3317.59,0.00015,2]
[330807602,1719813038362,-539.37164339,0.00014973,2]
[330807603,1719813038371,-2119.52484395,0.00015,2]
[330807604,1719813038383,-451.57864314,0.00015,2]
[330807605,1719813038394,-4474.43573524,0.00015,2]
[330807606,1719813038405,-11921.43099431,0.00015,2]
[330807607,1719813038416,-1765.0,0.00015,2]
[330807608,1719813038428,-14238.4929692,0.00015,2]
[330807609,1719813038437,-172.54,0.00015,2]
[330807610,1719813038447,-9999.99,0.00015002,2]
[330807611,1719813038459,-172.54,0.0001504,2]
[330807612,1719813038468,-172.54,0.0001508,2]
[330807613,1719813038479,-326.98,0.0001509,2]
[330807614,1719813038488,-500.0,0.00015102,2]
[330807615,1719813038498,-1206.57,0.00015102,2]
[330807616,1719813038508,-172.54,0.0001512,2]
[330807617,1719813038517,-172.54,0.00015161,2]
[330807618,1719813038527,-150.99,0.00015166,2]
[330807619,1719813038537,-172.54,0.00015201,2]
[330807620,1719813038546,-172.54,0.00015241,2]
[330807621,1719813038556,-1.60857155,0.00015281,2]
[330807622,1719813038583,-170.93142845,0.00015281,2]
[330807623,1719813038593,-172.54,0.00015321,2]
[330807624,1719813038603,-509.61584846,0.00015335,2]
[330807625,1719813038614,-344.93543725,0.00015335,2]
[330807626,1719813038624,-172.54,0.00015361,2]
[330807627,1719813038634,-10.52104414,0.00015367,2]
[330807628,1719813038652,-142.38895586,0.00015367,2]
[330807629,1719813038661,-56303.0,0.000154,2]
[330807630,1719813038671,-172.54,0.00015401,2]
[330807631,1719813038681,-255.827,0.00015429,2]
[330807632,1719813038691,-483.73593988,0.00015479,2]
[330807633,1719813038701,-3037.01242114,0.00015535,2]
[330807634,1719813038712,-250.0,0.00015574,2]
[330807635,1719813038724,-700.0,0.0001565,2]
[330807636,1719813038735,-11482.0,0.000157,3]
[330807637,1719813038744,-5144.7999362,0.00015733,2]
[330807638,1719813038754,-1077.67,0.00015758,2]
[330807639,1719813038764,-200.83,0.0001576,2]
[330807640,1719813038776,-500.0,0.00015924,2]
[330807641,1719813038785,-500.0,0.00015924,2]
[330807642,1719813038795,-700.0,0.00016,5]
[330807643,1719813038804,-11482.0,0.00016,5]
[330807644,1719813038815,-3779.04,0.00016116,2]
[330807645,1719813038825,-600.0,0.00016198,2]
[330807646,1719813038834,-500.0,0.00016198,2]
[330807647,1719813038844,-453.73,0.00016204,2]
[330807648,1719813038854,-255.827,0.00016239,2]
[330807649,1719813038864,-600.0,0.00016276,2]
[330807650,1719813038873,-177.78,0.00016284,2]
[330807651,1719813038883,-173.38,0.000163,2]
[330807652,1719813038892,-400.0,0.00016346,2]
[330807653,1719813038902,-700.0,0.00016472,2]
[330807654,1719813038911,-5144.7999362,0.00016567,2]
[330807655,1719813038921,-3970.5486,0.00016599,2]
[330807656,1719813038930,-500.0,0.00016746,2]
[330807657,1719813038939,-155.06,0.00016787,2]
[330807658,1719813038949,-3116.17339962,0.00016808,2]
[330807659,1719813038963,-3018.97838296,0.00016808,2]
[330807660,1719813038972,-708.0,0.00017,5]
[330807661,1719813038984,-453.73,0.00017014,2]
[330807662,1719813038995,-700.0,0.0001702,2]
[330807663,1719813039005,-255.827,0.00017134,2]
[330807664,1719813039015,-500.0,0.00017294,2]
[330807665,1719813039025,-326.98,0.00017354,2]
[330807666,1719813039036,-5144.7999362,0.000174,2]
[330807667,1719813039046,-150.0,0.0001751,2]
[330807668,1719813039056,-500.0,0.00017568,2]
[330807669,1719813039065,-700.0,0.00017568,2]
[330807670,1719813039075,-769.14242717,0.0001765,2]
[330807671,1719813039085,-2868.0,0.000177,2]
[330807672,1719813039095,-453.73,0.00017825,2]
[330807673,1719813039105,-600.0,0.00017842,2]
[330807674,1719813039115,-500.0,0.00017842,2]
[330807675,1719813039125,-500.0,0.00017842,2]
[330807676,1719813039136,-29185.3467,0.00017899,2]
[330807677,1719813039146,-250.0,0.00018058,2]
[330807678,1719813039156,-255.827,0.00018126,2]
[330807679,1719813039167,-400.0,0.00018162,2]
[330807680,1719813039178,-5144.7999362,0.00018233,2]
[330807681,1719813039189,-600.0,0.0001831,2]
[330807682,1719813039199,-350.0,0.00018606,2]
[330807683,1719813039211,-453.73,0.00018635,2]
[330807684,1719813039221,-500.0,0.00018664,2]
[330807685,1719813039231,-700.0,0.00018664,2]
[330807686,1719813039241,-154.00494615,0.00018728,2]
[330807687,1719813039252,-1473.30959639,0.00018759,2]
[330807688,1719813039262,-2536.18,0.00018849,30]
[330807689,1719813039272,-153.68,0.000189,2]
[330807690,1719813039281,-227.0716558,0.00018919,2]
[330807691,1719813039291,-526.28304125,0.00018919,2]
[330807692,1719813039300,-512.9635591,0.00018919,2]
[330807693,1719813039309,-600.0,0.00018938,2]
[330807694,1719813039319,-500.0,0.00018938,2]
[330807695,1719813039328,-500.0,0.00018938,2]
[330807696,1719813039337,-10000.0,0.00018968,2]
[330807697,1719813039347,-155.6528585,0.00018999,2]
[330807698,1719813039356,-300.0,0.00019,2]
[330807699,1719813039366,-716.21074661,0.00019091,2]
[330807700,1719813039375,-450.0,0.00019154,2]
[330807701,1719813039384,-500.0,0.00019178,2]
[330807702,1719813039394,-160.08932173,0.00019178,2]
[330807703,1719813039403,-500.0,0.00019178,2]
[330807704,1719813039413,-500.0,0.00019178,2]
[330807705,1719813039422,-203.97881125,0.00019178,2]
[330807706,1719813039432,-500.0,0.00019178,2]
[330807707,1719813039441,-373.00410238,0.00019178,2]
[330807708,1719813039451,-152.55601137,0.00019178,2]
[330807709,1719813039461,-250.0,0.00019178,2]
[330807710,1719813039470,-154.09,0.00019178,2]
[330807711,1719813039480,-255.827,0.00019227,2]
[330807712,1719813039489,-769.14242716,0.00019228,2]
[330807713,1719813039499,-246.34734534,0.00019229,2]
[330807714,1719813039508,-154.86627899,0.00019237,2]
[330807715,1719813039517,-154.94398227,0.00019299,2]
[330807716,1719813039527,-158.61860172,0.00019358,2]
[330807717,1719813039536,-154.00494615,0.0001936,2]
[330807718,1719813039546,-453.73,0.00019445,2]
[330807719,1719813039556,-154.00494615,0.0001954,2]
[330807720,1719813039566,-158.61860172,0.00019568,2]
[330807721,1719813039576,-422.84,0.0001958,2]
[330807722,1719813039586,-326.98,0.00019618,2]
[330807723,1719813039596,-154.00494615,0.00019619,2]
[330807724,1719813039606,-550.0,0.00019702,2]
[330807725,1719813039616,-154.09,0.00019742,2]
[330807726,1719813039626,-500.0,0.0001976,2]
[330807727,1719813039636,-700.0,0.0001976,2]
[330807728,1719813039646,-400.0,0.00019978,2]
[330807729,1719813039656,-19620.26394368,0.0001999,2]
[330807730,1719813039666,-600.0,0.00020034,2]
[330807731,1719813039676,-199.6115436,0.00020034,2]
[330807732,1719813039686,-500.0,0.00020034,2]
[330807733,1719813039696,-154.00494615,0.00020163,2]
[330807734,1719813039706,-650.0,0.0002025,2]
[330807735,1719813039715,-154.09,0.00020306,2]
[330807736,1719813039725,-600.0,0.00020345,2]
[330807737,1719813039736,-153.41251731,0.00020419,2]
[330807738,1719813039746,-1422.42,0.00020447,2]
[330807739,1719813039756,-189.898,0.00020447,2]
[330807740,1719813039769,-505.066,0.00020447,2]
[330807741,1719813039780,-823.236,0.00020447,2]
[330807742,1719813039790,-619.709,0.00020447,2]
[330807743,1719813039801,-168.577,0.00020447,2]
[330807744,1719813039812,-150.125,0.00020447,2]
[330807745,1719813039822,-150.0,0.00020447,2]
[330807746,1719813039832,-152.729,0.00020447,2]
[330807747,1719813039843,-150.092,0.00020447,2]
[330807748,1719813039855,-150.136,0.00020447,2]
[330807749,1719813039866,-255.827,0.00020454,2]
[330807750,1719813039876,-278.61317,0.00020548,2]
[330807751,1719813039886,-154.00494615,0.00020643,2]
[330807752,1719813039896,-171.92057709,0.000207,2]
[330807753,1719813039905,-452.97345319,0.00020798,2]
[330807754,1719813039915,-291.57751628,0.000208,2]
[330807755,1719813039925,-261656.865427,0.000208,3]
[330807756,1719813039935,-769.14242716,0.00020806,2]
[330807757,1719813039945,-500.0,0.00020856,2]
[330807758,1719813039954,-700.0,0.00020856,2]
[330807759,1719813039965,-154.09,0.0002087,2]
[330807760,1719813039975,-137432.545891,0.000209,3]
[330807761,1719813039984,-151.02465678,0.00020906,2]
[330807762,1719813039994,-225.19167095,0.00021,2]
[330807763,1719813040003,-1456.0,0.00021,2]
[330807764,1719813040013,-1000.0,0.00021,21]
[330807765,1719813040023,-203.086046,0.00021,2]
[330807766,1719813040032,-151.0,0.00021037,2]
[330807767,1719813040042,-32707.1081784,0.0002106,3]
[330807768,1719813040052,-22905.4243152,0.0002106,3]
[330807769,1719813040062,-37331.0360529,0.0002107,2]
[330807770,1719813040072,-198.70206459,0.0002107,2]
[330807771,1719813040082,-19443.87430452,0.0002107,2]
[330807772,1719813040091,-600.0,0.0002113,2]
[330807773,1719813040101,-500.0,0.0002113,2]
[330807774,1719813040111,-278.61317,0.0002137,2]
[330807775,1719813040121,-1692.0,0.000214,2]
[330807776,1719813040130,-154.09,0.00021434,2]
[330807777,1719813040140,-500.0,0.00021492,2]
[330807778,1719813040149,-200.0,0.00021492,2]
[330807779,1719813040159,-225.0,0.000215,2]
[330807780,1719813040170,-356.0,0.000215,2]
[330807781,1719813040180,-1000.0,0.000215,2]
[330807782,1719813040190,-158.61860172,0.00021548,2]
[330807783,1719813040200,-661.0,0.00021566,2]
[330807784,1719813040210,-196.0,0.000216,3]
[330807785,1719813040220,-809.15,0.00021644,2]
[330807786,1719813040232,-455.52,0.00021644,2]
[330807787,1719813040244,-500.0,0.00021794,2]
[330807788,1719813040254,-400.0,0.00021795,2]
[330807789,1719813040263,-500.0,0.00021803,2]
[330807790,1719813040272,-500.0,0.00021811,2]
[330807791,1719813040282,-255.827,0.00021825,2]
[330807792,1719813040291,-326.98,0.00021882,2]
[330807793,1719813040300,-365.92093007,0.00021887,2]
[330807794,1719813040310,-2500.0,0.000219,2]
[330807795,1719813040319,-16353.5540892,0.00021907,3]
[330807796,1719813040329,-522.79492743,0.00021917,4]
[330807797,1719813040339,-542.18826011,0.00021917,4]
[330807798,1719813040348,-1250.76,0.00021917,4]
[330807799,1719813040358,-1250.76,0.00021917,4]
[330807800,1719813040367,-1250.76,0.00021917,4]
[330807801,1719813040377,-1250.76,0.00021917,4]
[330807802,1719813040386,-182.07,0.00021918,2]
[330807803,1719813040396,-1571.07,0.00021918,2]
[330807804,1719813040406,-500.0,0.00021952,2]
[330807805,1719813040416,-700.0,0.00021952,2]
[330807806,1719813040426,-154.09,0.00021998,2]
[330807807,1719813040436,-1000.0,0.00022,22]
[330807808,1719813040445,-381.66599906,0.00022,2]
[330807809,1719813040455,-152.75625899,0.00022065,2]
[330807810,1719813040464,-6277.41954857,0.00022068,2]
[330807811,1719813040474,-22905.4243152,0.00022134,3]
[330807812,1719813040484,-3171.8613027,0.00022144,2]
[330807813,1719813040493,-2018.30932762,0.00022144,2]
[330807814,1719813040503,-2018.30932762,0.00022144,2]
[330807815,1719813040512,-153.31184781,0.00022156,2]
[330807816,1719813040522,-804.38284125,0.00022163,2]
[330807817,1719813040532,-327.16438361,0.00022191,2]
[330807818,1719813040541,-159.57081907,0.00022191,2]
[330807820,1719813040551,-278.61317,0.00022192,2]
[330807821,1719813040560,-155.3092856,0.00022199,2]
[330807823,1719813040569,-1275.60065017,0.00022199,2]
[330807825,1719813040579,-188.17121959,0.00022199,2]
[330807826,1719813040589,-1000.0,0.000222,2]
[330807828,1719813040599,-155.19267137,0.00022211,3]
[330807830,1719813040609,-155.19267137,0.00022211,3]
[330807831,1719813040619,-867.54923149,0.00022211,2]
[330807832,1719813040629,-600.0,0.00022226,2]
[330807833,1719813040639,-500.0,0.00022226,2]
[330807834,1719813040649,-954.12425,0.0002227,2]
[330807835,1719813040659,-455.11138701,0.0002228,2]
[330807836,1719813040669,-600.0,0.00022379,2]
[330807837,1719813040679,-800.0,0.00022384,2]
[330807838,1719813040689,-800.0,0.00022384,2]
[330807839,1719813040699,-800.0,0.00022384,2]
[330807840,1719813040708,-16353.5540892,0.00022389,3]
[330807841,1719813040717,-22905.4243152,0.0002239,3]
[330807842,1719813040727,-150.47115675,0.00022396,2]
[330807843,1719813040737,-154.00494615,0.00022396,2]
[330807844,1719813040746,-150.47115675,0.00022397,2]
[330807845,1719813040756,-150.47115675,0.00022398,2]
[330807846,1719813040767,-150.47115675,0.00022399,2]
[330807847,1719813040778,-1250.76,0.00022399,4]
[330807848,1719813040788,-150.47115675,0.000224,2]
[330807849,1719813040797,-982.0,0.000224,5]
[330807850,1719813040807,-154.72,0.000224,31]
[330807851,1719813040816,-154.72,0.000224,31]
[330807852,1719813040825,-154.72,0.000224,31]
[330807853,1719813040834,-444.9185,0.000224,2]
[330807854,1719813040844,-600.0,0.000224,6]
[330807855,1719813040855,-713.46294666,0.000224,2]
[330807856,1719813040866,-197.59758404,0.000224,2]
[330807857,1719813040876,-717.9436177,0.000224,2]
[330807858,1719813040885,-1715.97,0.00022412,2]
[330807859,1719813040894,-853.83,0.00022412,2]
[330807860,1719813040903,-853.83,0.00022412,2]
[330807861,1719813040913,-418.89,0.00022412,2]
[330807862,1719813040922,-423.5,0.00022412,2]
[330807863,1719813040931,-418.89,0.00022412,2]
[330807864,1719813040940,-418.89,0.00022412,2]
[330807865,1719813040950,-418.89,0.00022412,2]
[330807866,1719813040959,-156.21,0.00022412,2]
[330807867,1719813040968,-157.070111,0.00022448,2]
[330807868,1719813040977,-49060.6622676,0.00022475,3]
[330807869,1719813040986,-22905.4243152,0.00022475,3]
[330807870,1719813040995,-184.60793833,0.0002248,2]
[330807871,1719813041005,-2160.8913393,0.00022485,2]
[330807872,1719813041014,-1872.5881275,0.00022485,2]
[330807873,1719813041023,-1584.2849157,0.00022485,2]
[330807874,1719813041032,-1295.9817039,0.00022485,2]
[330807875,1719813041041,-1007.6784921,0.00022485,2]
[330807876,1719813041051,-173.9406897,0.00022485,2]
[330807877,1719813041060,-173.9406897,0.00022485,2]
[330807878,1719813041070,-173.9406897,0.00022485,2]
[330807879,1719813041079,-173.9406897,0.00022485,2]
[330807880,1719813041088,-173.9406897,0.00022485,2]
[330807881,1719813041098,-4450.1447883,0.00022485,2]
[330807882,1719813041107,-3859.3772331,0.00022485,2]
[330807883,1719813041116,-3268.6096779,0.00022485,2]
[330807884,1719813041125,-2677.8421227,0.00022485,2]
[330807885,1719813041134,-2087.0745675,0.00022485,2]
[330807886,1719813041143,-289.2530902,0.00022485,2]
[330807887,1719813041153,-264.6976757,0.00022485,2]
[330807888,1719813041162,-240.1422612,0.00022485,2]
[330807889,1719813041171,-215.5868466,0.00022485,2]
[330807890,1719813041180,-191.0314321,0.00022485,2]
[330807891,1719813041189,-8628.9475747,0.00022485,2]
[330807892,1719813041198,-7920.1833191,0.00022485,2]
[330807893,1719813041208,-7211.4190635,0.00022485,2]
[330807894,1719813041217,-6502.6548079,0.00022485,2]
[330807895,1719813041226,-5793.8905523,0.00022485,2]
[330807897,1719813041235,-474.0277454,0.00022485,2]
[330807899,1719813041243,-435.5885621,0.00022485,2]
[330807901,1719813041252,-397.1493787,0.00022485,2]
[330807903,1719813041261,-358.7101954,0.00022485,2]
[330807905,1719813041270,-320.271012,0.00022485,2]
[330807906,1719813041279,-1910.6737776,0.00022485,2]
[330807908,1719813041288,-1667.3262501,0.00022485,2]
[330807910,1719813041297,-1423.9787227,0.00022485,2]
[330807912,1719813041307,-1180.6311952,0.00022485,2]
[330807914,1719813041316,-937.2836677,0.00022485,2]
[330807916,1719813041325,-16353.5540892,0.00022489,3]
[330807918,1719813041334,-22905.4243152,0.00022489,3]
[330807920,1719813041343,-16353.5540892,0.0002249,3]
[330807922,1719813041353,-28817.76511569,0.0002249,3]
[330807924,1719813041369,-484.04490237,0.0002249,3]
[330807925,1719813041407,-6842.5,0.0002249,3]
[330807926,1719813041418,-648.10177974,0.0002249,3]
[330807927,1719813041430,-27447.11317172,0.0002249,3]
[330807928,1719813041442,-1425.25188922,0.0002249,3]
[330807929,1719813041454,-31778.36654774,0.0002249,3]
[330807930,1719813041465,-439.1278183,0.0002249,3]
[330807931,1719813041476,-1454.24510192,0.0002249,3]
[330807932,1719813041489,-7214.73959698,0.0002249,3]
[330807933,1719813041501,-11216.25702667,0.0002249,3]
[330807934,1719813041512,-2107.62515821,0.0002249,3]
[330807935,1719813041523,-1000.12448016,0.0002249,3]
[330807936,1719813041534,-4209.38284784,0.0002249,3]
[330807937,1719813041550,-1340.26476761,0.0002249,3]
[330807938,1719813041561,-1258.28539142,0.0002249,3]
[330807939,1719813041572,-528.39896365,0.0002249,3]
[330807940,1719813041584,-313.27,0.0002249,3]
[330807941,1719813041595,-14201.0553162,0.0002249,3]
[330807942,1719813041606,-1876.900965,0.0002249,3]
[330807943,1719813041618,-619.34200003,0.0002249,3]
[330807944,1719813041629,-760.703511,0.0002249,3]
[330807945,1719813041640,-10852.37161413,0.0002249,3]
[330807946,1719813041651,-5107.21732208,0.0002249,3]
[330807947,1719813041663,-7047.4497525,0.0002249,3]
[330807948,1719813041676,-413.27020903,0.0002249,3]
[330807949,1719813041687,-774.47387145,0.0002249,3]